[Event "Titled Tuesday Blitz December 20 Late 2022"]
[White "Keymer, Vincent"]
[Black "Kim, Sergey"]
[WhiteFideId "12940690"]
[BlackFideId "13700570"]
[WhiteElo "2600"]
[BlackElo "2480"]
[Result "1/2-1/2"]
[Round "01"]
[TimeControl "180+1"]
[Date "2022.12.20"]
[WhiteClock "0:00:05"]
[BlackClock "0:00:12"]

1. Nf3 {[%clk 0:02:55]}  Nf6 {[%clk 0:02:58]} 2. c4 {[%clk 0:02:53]}  g6 {[%clk 0:02:58]} 3. Nc3 {[%clk 0:02:53]}  Bg7 {[%clk 0:02:58]} 4. g3 {[%clk 0:02:54]}  d6 {[%clk 0:02:59]} 5. d4 {[%clk 0:02:53]}  O-O {[%clk 0:02:59]} 6. Bg2 {[%clk 0:02:54]}  Nbd7 {[%clk 0:02:58]} 7. O-O {[%clk 0:02:54]}  e5 {[%clk 0:02:58]} 8. e4 {[%clk 0:02:54]}  exd4 {[%clk 0:02:57]} 9. Nxd4 {[%clk 0:02:55]}  Re8 {[%clk 0:02:57]} 10. h3 {[%clk 0:02:56]}  Nc5 {[%clk 0:02:57]} 11. Re1 {[%clk 0:02:56]}  c6 {[%clk 0:02:57]} 12. Bf4 {[%clk 0:02:52]}  Nh5 {[%clk 0:02:56]} 13. Be3 {[%clk 0:02:51]}  a5 {[%clk 0:02:56]} 14. b3 {[%clk 0:02:51]}  Nf6 {[%clk 0:02:47]} 15. Qc2 {[%clk 0:02:51]}  Nfd7 {[%clk 0:02:47]} 16. Rad1 {[%clk 0:02:50]}  Qc7 {[%clk 0:02:42]} 17. Qd2 {[%clk 0:02:46]}  a4 {[%clk 0:02:36]} 18. b4 {[%clk 0:02:45]}  Ne6 {[%clk 0:02:36]} 19. a3 {[%clk 0:02:37]}  Ne5 {[%clk 0:02:35]} 20. Qe2 {[%clk 0:02:29]}  Nxd4 {[%clk 0:02:30]} 21. Bxd4 {[%clk 0:02:30]}  Be6 {[%clk 0:02:30]} 22. c5 {[%clk 0:02:24]}  dxc5 {[%clk 0:02:29]} 23. bxc5 {[%clk 0:02:23]}  Rad8 {[%clk 0:02:06]} 24. Be3 {[%clk 0:01:51]}  Bc4 {[%clk 0:01:46]} 25. Rxd8 {[%clk 0:00:53]}  Rxd8 {[%clk 0:01:41]} 26. Qc2 {[%clk 0:00:54]}  Bb3 {[%clk 0:01:38]} 27. Qe2 {[%clk 0:00:53]}  Bc4 {[%clk 0:01:25]} 28. Qc2 {[%clk 0:00:48]}  Bb3 {[%clk 0:01:25]} 29. Qb1 {[%clk 0:00:29]}  Qa5 {[%clk 0:01:17]} 30. Ne2 {[%clk 0:00:29]}  Nc4 {[%clk 0:01:10]} 31. Bg5 {[%clk 0:00:27]}  Nxa3 {[%clk 0:00:49]} 32. Qc1 {[%clk 0:00:27]}  Rd7 {[%clk 0:00:46]} 33. Kh2 {[%clk 0:00:15]}  Nc4 {[%clk 0:00:37]} 34. Rf1 {[%clk 0:00:13]}  Qxc5 {[%clk 0:00:37]} 35. Qf4 {[%clk 0:00:12]}  Qe5 {[%clk 0:00:33]} 36. Qg4 {[%clk 0:00:12]}  Qe6 {[%clk 0:00:30]} 37. Qf4 {[%clk 0:00:12]}  Be5 {[%clk 0:00:29]} 38. Qh4 {[%clk 0:00:10]}  a3 {[%clk 0:00:29]} 39. f4 {[%clk 0:00:11]}  Bg7 {[%clk 0:00:25]} 40. f5 {[%clk 0:00:11]}  Qe8 {[%clk 0:00:23]} 41. f6 {[%clk 0:00:11]}  Bf8 {[%clk 0:00:23]} 42. Bh6 {[%clk 0:00:09]}  a2 {[%clk 0:00:23]} 43. Ra1 {[%clk 0:00:05]}  Ne5 {[%clk 0:00:18]} 44. Nc1 {[%clk 0:00:05]}  Be6 {[%clk 0:00:17]} 45. Bxf8 {[%clk 0:00:03]}  Qxf8 {[%clk 0:00:17]} 46. Nxa2 {[%clk 0:00:03]}  Qa3 {[%clk 0:00:15]} 47. Qh6 {[%clk 0:00:03]}  Qf8 {[%clk 0:00:14]} 48. Qxf8+ {[%clk 0:00:03]}  Kxf8 {[%clk 0:00:13]} 49. Nc3 {[%clk 0:00:03]}  Rd8 {[%clk 0:00:13]} 50. Ne2 {[%clk 0:00:03]}  g5 {[%clk 0:00:13]} 51. Ng1 {[%clk 0:00:02]}  h5 {[%clk 0:00:12]} 52. Nf3 {[%clk 0:00:02]}  Nxf3+ {[%clk 0:00:12]} 53. Bxf3 {[%clk 0:00:03]}  g4 {[%clk 0:00:12]} 54. hxg4 {[%clk 0:00:04]}  hxg4 {[%clk 0:00:13]} 55. Bg2 {[%clk 0:00:04]}  b5 {[%clk 0:00:13]} 56. e5 {[%clk 0:00:05]}  Ke8 {[%clk 0:00:12]} 57. Bxc6+ {[%clk 0:00:04]}  Kf8 {[%clk 0:00:12]} 58. Bxb5 {[%clk 0:00:04]}  Kg8 {[%clk 0:00:11]} 59. Ra3 {[%clk 0:00:03]}  Kh7 {[%clk 0:00:10]} 60. Bd3+ {[%clk 0:00:03]}  Kh6 {[%clk 0:00:10]} 61. Kg2 {[%clk 0:00:03]}  Kg5 {[%clk 0:00:10]} 62. Kf2 {[%clk 0:00:03]}  Rd5 {[%clk 0:00:10]} 63. Be4 {[%clk 0:00:02]}  Rxe5 {[%clk 0:00:10]} 64. Re3 {[%clk 0:00:02]}  Kxf6 {[%clk 0:00:10]} 65. Bd3 {[%clk 0:00:02]}  Rxe3 {[%clk 0:00:10]} 66. Kxe3 {[%clk 0:00:03]}  Kg5 {[%clk 0:00:11]} 67. Be2 {[%clk 0:00:03]}  Bf5 {[%clk 0:00:11]} 68. Bc4 {[%clk 0:00:04]}  Be6 {[%clk 0:00:11]} 69. Bd3 {[%clk 0:00:04]}  Bf5 {[%clk 0:00:11]} 70. Bc4 {[%clk 0:00:04]}  Be6 {[%clk 0:00:12]} 71. Bd3 {[%clk 0:00:04]}  Bf5 {[%clk 0:00:12]} 72. Bc4 {[%clk 0:00:05]} 1/2-1/2


[Site "https://www.chess.com"]

[Event "Titled Tuesday Blitz December 20 Late 2022"]
[White "Kohler, Aran"]
[Black "Mendez Fortes, Eduardo Jesus"]
[WhiteFideId "1002856"]
[BlackFideId "3502376"]
[WhiteElo "2344"]
[BlackElo "2307"]
[Result "0-1"]
[Round "01"]
[TimeControl "180+1"]
[Date "2022.12.21"]
[WhiteClock "0:00:01"]
[BlackClock "0:01:08"]

1. d4 {[%clk 0:02:54]}  Nf6 {[%clk 0:02:59]} 2. Nf3 {[%clk 0:02:53]}  d5 {[%clk 0:02:59]} 3. Bf4 {[%clk 0:02:51]}  c5 {[%clk 0:02:59]} 4. e3 {[%clk 0:02:49]}  Nc6 {[%clk 0:02:59]} 5. c3 {[%clk 0:02:48]}  Qb6 {[%clk 0:02:59]} 6. b3 {[%clk 0:02:47]}  Bg4 {[%clk 0:02:58]} 7. Nbd2 {[%clk 0:02:45]}  e6 {[%clk 0:02:59]} 8. h3 {[%clk 0:02:41]}  Bh5 {[%clk 0:02:59]} 9. Be2 {[%clk 0:02:39]}  Be7 {[%clk 0:02:59]} 10. Ne5 {[%clk 0:02:38]}  Bxe2 {[%clk 0:02:58]} 11. Qxe2 {[%clk 0:02:37]}  Nxe5 {[%clk 0:02:58]} 12. Bxe5 {[%clk 0:02:37]}  O-O {[%clk 0:02:59]} 13. O-O {[%clk 0:02:36]}  Nd7 {[%clk 0:02:59]} 14. Bg3 {[%clk 0:02:33]}  Rac8 {[%clk 0:02:58]} 15. Rac1 {[%clk 0:02:30]}  Nf6 {[%clk 0:02:46]} 16. f3 {[%clk 0:02:24]}  Qa5 {[%clk 0:02:39]} 17. Nb1 {[%clk 0:02:17]}  Nd7 {[%clk 0:02:38]} 18. Be1 {[%clk 0:02:07]}  Qb6 {[%clk 0:02:34]} 19. Kh1 {[%clk 0:02:04]}  cxd4 {[%clk 0:02:30]} 20. exd4 {[%clk 0:02:03]}  Rfe8 {[%clk 0:02:27]} 21. c4 {[%clk 0:01:59]}  dxc4 {[%clk 0:02:24]} 22. Rxc4 {[%clk 0:01:47]}  Nf6 {[%clk 0:02:23]} 23. Bf2 {[%clk 0:01:29]}  Nd5 {[%clk 0:02:20]} 24. Rfc1 {[%clk 0:01:28]}  Rcd8 {[%clk 0:02:19]} 25. Nc3 {[%clk 0:01:21]}  Ba3 {[%clk 0:02:17]} 26. Rc2 {[%clk 0:01:21]}  Bd6 {[%clk 0:02:08]} 27. Ne4 {[%clk 0:01:20]}  Bb8 {[%clk 0:02:05]} 28. Nc5 {[%clk 0:01:19]}  Qd6 {[%clk 0:01:57]} 29. g3 {[%clk 0:01:19]}  Qe7 {[%clk 0:01:54]} 30. Ne4 {[%clk 0:01:14]}  b6 {[%clk 0:01:54]} 31. Rc6 {[%clk 0:01:12]}  Nb4 {[%clk 0:01:49]} 32. Kg2 {[%clk 0:00:57]}  Nxc6 {[%clk 0:01:47]} 33. Rxc6 {[%clk 0:00:57]}  Rc8 {[%clk 0:01:47]} 34. Qc4 {[%clk 0:00:52]}  Qd7 {[%clk 0:01:41]} 35. Rxc8 {[%clk 0:00:48]}  Rxc8 {[%clk 0:01:42]} 36. Qd3 {[%clk 0:00:46]}  Rd8 {[%clk 0:01:38]} 37. Ng5 {[%clk 0:00:44]}  g6 {[%clk 0:01:36]} 38. Ne4 {[%clk 0:00:43]}  Qe7 {[%clk 0:01:32]} 39. h4 {[%clk 0:00:40]}  f5 {[%clk 0:01:28]} 40. Nc3 {[%clk 0:00:37]}  Kg7 {[%clk 0:01:23]} 41. Be3 {[%clk 0:00:29]}  f4 {[%clk 0:01:17]} 42. gxf4 {[%clk 0:00:23]}  Qxh4 {[%clk 0:01:16]} 43. d5 {[%clk 0:00:22]}  Bxf4 {[%clk 0:01:11]} 44. Bxf4 {[%clk 0:00:16]}  Qxf4 {[%clk 0:01:11]} 45. Ne2 {[%clk 0:00:07]}  Qg5+ {[%clk 0:01:09]} 46. Kf2 {[%clk 0:00:02]}  Qxd5 {[%clk 0:01:09]} 47. Qa6 {[%clk 0:00:01]}  Rd7 {[%clk 0:01:08]} 48. Qc8 {[%clk 0:00:01]}  Qc5+ {[%clk 0:01:08]} 49. Qxc5 {[%clk 0:00:01]}  bxc5 {[%clk 0:01:08]} 0-1


[Site "https://www.chess.com"]

[Event "Titled Tuesday Blitz December 20 Late 2022"]
[White "Kuzmicz, Krystian"]
[Black "Huber, Benedikt"]
[WhiteFideId "1119125"]
[BlackFideId "12923583"]
[WhiteElo "2379"]
[BlackElo "2199"]
[Result "1-0"]
[Round "01"]
[TimeControl "180+1"]
[Date "2022.12.21"]
[WhiteClock "0:00:35"]
[BlackClock "0:00:13"]

1. e4 {[%clk 0:03:00]}  c5 {[%clk 0:02:41]} 2. d3 {[%clk 0:03:00]}  e6 {[%clk 0:02:40]} 3. g3 {[%clk 0:03:01]}  d5 {[%clk 0:02:40]} 4. Nd2 {[%clk 0:03:00]}  Nc6 {[%clk 0:02:40]} 5. Bg2 {[%clk 0:03:01]}  Nf6 {[%clk 0:02:40]} 6. Nh3 {[%clk 0:03:01]}  Be7 {[%clk 0:02:37]} 7. O-O {[%clk 0:03:00]}  O-O {[%clk 0:02:36]} 8. f4 {[%clk 0:03:00]}  dxe4 {[%clk 0:02:37]} 9. dxe4 {[%clk 0:03:01]}  b6 {[%clk 0:02:30]} 10. e5 {[%clk 0:02:58]}  Nd5 {[%clk 0:02:27]} 11. Ne4 {[%clk 0:02:57]}  Ba6 {[%clk 0:02:23]} 12. Re1 {[%clk 0:02:57]}  Ndb4 {[%clk 0:02:19]} 13. Nd6 {[%clk 0:02:39]}  Nd5 {[%clk 0:01:57]} 14. c4 {[%clk 0:02:28]}  Bxd6 {[%clk 0:01:33]} 15. cxd5 {[%clk 0:02:27]}  exd5 {[%clk 0:01:31]} 16. exd6 {[%clk 0:02:26]}  Nb4 {[%clk 0:01:30]} 17. a3 {[%clk 0:02:00]}  Nd3 {[%clk 0:01:30]} 18. Bf1 {[%clk 0:02:00]}  Nxe1 {[%clk 0:01:16]} 19. Bxa6 {[%clk 0:02:00]}  Re8 {[%clk 0:01:16]} 20. Be2 {[%clk 0:01:57]}  Qxd6 {[%clk 0:01:12]} 21. Qxe1 {[%clk 0:01:54]}  Qe6 {[%clk 0:01:13]} 22. Kf2 {[%clk 0:01:41]}  Qxh3 {[%clk 0:01:12]} 23. Qg1 {[%clk 0:01:40]}  Rxe2+ {[%clk 0:00:25]} 24. Kxe2 {[%clk 0:01:41]}  Re8+ {[%clk 0:00:25]} 25. Kf2 {[%clk 0:01:32]}  Qh5 {[%clk 0:00:23]} 26. g4 {[%clk 0:01:22]}  Qh4+ {[%clk 0:00:20]} 27. Qg3 {[%clk 0:01:16]}  Qf6 {[%clk 0:00:20]} 28. Kg2 {[%clk 0:00:59]}  Re2+ {[%clk 0:00:20]} 29. Kf1 {[%clk 0:00:51]}  Qe6 {[%clk 0:00:20]} 30. f5 {[%clk 0:00:44]}  Qe8 {[%clk 0:00:19]} 31. Bf4 {[%clk 0:00:43]}  g5 {[%clk 0:00:18]} 32. fxg6 {[%clk 0:00:42]}  Re4 {[%clk 0:00:17]} 33. Re1 {[%clk 0:00:40]}  Qb5+ {[%clk 0:00:16]} 34. Kf2 {[%clk 0:00:36]}  Rxe1 {[%clk 0:00:13]} 35. Kxe1 {[%clk 0:00:36]}  hxg6 {[%clk 0:00:13]} 36. Be5 {[%clk 0:00:35]}  Qd3 {[%clk 0:00:13]} 37. Qxd3 {[%clk 0:00:35]} 1-0


[Site "https://www.chess.com"]

[Event "Titled Tuesday Blitz December 20 Late 2022"]
[White "Liu, Kelsey"]
[Black "Ehlvest, Jaan"]
[WhiteFideId "30944481"]
[BlackFideId "4500016"]
[WhiteElo "2309"]
[BlackElo "2430"]
[Result "0-1"]
[Round "01"]
[TimeControl "180+1"]
[Date "2022.12.21"]
[WhiteClock "0:00:02"]
[BlackClock "0:00:10"]

1. e4 {[%clk 0:02:52]}  c5 {[%clk 0:02:59]} 2. Nf3 {[%clk 0:02:51]}  e6 {[%clk 0:02:59]} 3. d4 {[%clk 0:02:48]}  cxd4 {[%clk 0:02:58]} 4. Nxd4 {[%clk 0:02:49]}  Nf6 {[%clk 0:02:58]} 5. Nc3 {[%clk 0:02:48]}  Nc6 {[%clk 0:02:58]} 6. Ndb5 {[%clk 0:02:44]}  d6 {[%clk 0:02:52]} 7. Bf4 {[%clk 0:02:43]}  e5 {[%clk 0:02:52]} 8. Bg5 {[%clk 0:02:38]}  a6 {[%clk 0:02:52]} 9. Na3 {[%clk 0:02:37]}  b5 {[%clk 0:02:50]} 10. Nd5 {[%clk 0:02:35]}  Be7 {[%clk 0:02:50]} 11. Bxf6 {[%clk 0:02:13]}  Bxf6 {[%clk 0:02:50]} 12. c3 {[%clk 0:02:12]}  Rb8 {[%clk 0:02:49]} 13. Nc2 {[%clk 0:02:12]}  Bg5 {[%clk 0:02:48]} 14. g3 {[%clk 0:01:45]}  O-O {[%clk 0:02:45]} 15. h4 {[%clk 0:01:44]}  Bh6 {[%clk 0:02:42]} 16. Bg2 {[%clk 0:01:43]}  a5 {[%clk 0:02:35]} 17. g4 {[%clk 0:01:35]}  Bf4 {[%clk 0:02:31]} 18. Nxf4 {[%clk 0:01:26]}  exf4 {[%clk 0:02:30]} 19. Bf3 {[%clk 0:01:09]}  b4 {[%clk 0:02:23]} 20. c4 {[%clk 0:01:07]}  b3 {[%clk 0:02:20]} 21. Nd4 {[%clk 0:00:46]}  Ne5 {[%clk 0:01:58]} 22. Be2 {[%clk 0:00:42]}  bxa2 {[%clk 0:01:54]} 23. Rxa2 {[%clk 0:00:43]}  Bd7 {[%clk 0:01:39]} 24. f3 {[%clk 0:00:42]}  a4 {[%clk 0:01:38]} 25. Kf2 {[%clk 0:00:40]}  Rb4 {[%clk 0:01:31]} 26. Qc1 {[%clk 0:00:33]}  Qb6 {[%clk 0:01:30]} 27. Rd1 {[%clk 0:00:28]}  Rb8 {[%clk 0:01:29]} 28. Rd2 {[%clk 0:00:21]}  Nc6 {[%clk 0:01:10]} 29. Qc3 {[%clk 0:00:13]}  Rb3 {[%clk 0:01:07]} 30. c5 {[%clk 0:00:09]}  dxc5 {[%clk 0:00:47]} 31. Nxb3 {[%clk 0:00:09]}  axb3 {[%clk 0:00:39]} 32. Ra6 {[%clk 0:00:09]}  Qd8 {[%clk 0:00:37]} 33. Rxc6 {[%clk 0:00:06]}  Qxh4+ {[%clk 0:00:35]} 34. Kf1 {[%clk 0:00:05]}  Bxc6 {[%clk 0:00:33]} 35. Qe5 {[%clk 0:00:05]}  Qh1+ {[%clk 0:00:28]} 36. Kf2 {[%clk 0:00:06]}  Qh2+ {[%clk 0:00:28]} 37. Kf1 {[%clk 0:00:06]}  Re8 {[%clk 0:00:27]} 38. Qc7 {[%clk 0:00:03]}  Ba8 {[%clk 0:00:15]} 39. Qd7 {[%clk 0:00:03]}  Qh1+ {[%clk 0:00:13]} 40. Kf2 {[%clk 0:00:03]}  Qh4+ {[%clk 0:00:12]} 41. Kf1 {[%clk 0:00:04]}  Rf8 {[%clk 0:00:12]} 42. Bc4 {[%clk 0:00:03]}  g6 {[%clk 0:00:10]} 43. Qe7 {[%clk 0:00:02]}  Qxe7 {[%clk 0:00:10]} 0-1


[Site "https://www.chess.com"]

[Event "Titled Tuesday Blitz December 20 Late 2022"]
[White "Makridis, Dimitrios"]
[Black "Dzierzak, Radoslaw"]
[WhiteFideId "25864475"]
[BlackFideId "1161407"]
[WhiteElo "2272"]
[BlackElo "2111"]
[Result "1-0"]
[Round "01"]
[TimeControl "180+1"]
[Date "2022.12.21"]
[WhiteClock "0:01:29"]
[BlackClock "0:00:25"]

1. e4 {[%clk 0:02:56]}  c6 {[%clk 0:03:00]} 2. d4 {[%clk 0:02:56]}  d5 {[%clk 0:03:00]} 3. exd5 {[%clk 0:02:57]}  cxd5 {[%clk 0:03:01]} 4. Bd3 {[%clk 0:02:58]}  Nc6 {[%clk 0:03:01]} 5. c3 {[%clk 0:02:58]}  Nf6 {[%clk 0:03:01]} 6. h3 {[%clk 0:02:58]}  g6 {[%clk 0:03:01]} 7. Nf3 {[%clk 0:02:58]}  Bg7 {[%clk 0:03:01]} 8. O-O {[%clk 0:02:58]}  O-O {[%clk 0:03:01]} 9. Bf4 {[%clk 0:02:55]}  Bf5 {[%clk 0:03:01]} 10. Bxf5 {[%clk 0:02:55]}  gxf5 {[%clk 0:03:02]} 11. Nbd2 {[%clk 0:02:55]}  e6 {[%clk 0:03:00]} 12. Re1 {[%clk 0:02:55]}  Ne4 {[%clk 0:03:00]} 13. Nf1 {[%clk 0:02:54]}  Kh8 {[%clk 0:02:58]} 14. Ng3 {[%clk 0:02:39]}  Nxg3 {[%clk 0:02:51]} 15. Bxg3 {[%clk 0:02:38]}  Bf6 {[%clk 0:02:44]} 16. Qd2 {[%clk 0:02:37]}  Rg8 {[%clk 0:02:43]} 17. Qh6 {[%clk 0:02:36]}  Rg6 {[%clk 0:02:41]} 18. Qh5 {[%clk 0:02:35]}  Qg8 {[%clk 0:02:35]} 19. Kh1 {[%clk 0:02:32]}  Qg7 {[%clk 0:02:34]} 20. Ng1 {[%clk 0:02:10]}  f4 {[%clk 0:02:13]} 21. Bxf4 {[%clk 0:02:06]}  Rxg2 {[%clk 0:02:13]} 22. Bg3 {[%clk 0:02:07]}  Rxg3 {[%clk 0:02:10]} 23. fxg3 {[%clk 0:02:08]}  Qxg3 {[%clk 0:02:10]} 24. Qxf7 {[%clk 0:02:04]}  Be7 {[%clk 0:01:22]} 25. Qf3 {[%clk 0:02:02]}  Qg6 {[%clk 0:01:15]} 26. Qg4 {[%clk 0:02:00]}  Qxg4 {[%clk 0:01:08]} 27. hxg4 {[%clk 0:01:59]}  Nd8 {[%clk 0:01:05]} 28. Nf3 {[%clk 0:01:58]}  Kg7 {[%clk 0:01:05]} 29. Re2 {[%clk 0:01:56]}  Rc8 {[%clk 0:01:03]} 30. Rf1 {[%clk 0:01:55]}  Bf6 {[%clk 0:01:00]} 31. g5 {[%clk 0:01:54]}  Be7 {[%clk 0:01:00]} 32. Ne5 {[%clk 0:01:47]}  Bxg5 {[%clk 0:00:56]} 33. Rg2 {[%clk 0:01:46]}  h6 {[%clk 0:00:56]} 34. Rgf2 {[%clk 0:01:36]}  Rc7 {[%clk 0:00:54]} 35. Rf8 {[%clk 0:01:35]}  Be7 {[%clk 0:00:30]} 36. Re8 {[%clk 0:01:33]}  Bf6 {[%clk 0:00:26]} 37. Rg1+ {[%clk 0:01:29]}  Bg5 {[%clk 0:00:25]} 38. Rxd8 {[%clk 0:01:29]} 1-0


[Site "https://www.chess.com"]

[Event "Titled Tuesday Blitz December 20 Late 2022"]
[White "Martinez Reyes, Pedro Ramon"]
[Black "Tang, Andrew"]
[WhiteFideId "3901807"]
[BlackFideId "2059630"]
[WhiteElo "2354"]
[BlackElo "2582"]
[Result "1-0"]
[Round "01"]
[TimeControl "180+1"]
[Date "2022.12.20"]
[WhiteClock "0:00:44"]
[BlackClock "0:00:12"]

1. e4 {[%clk 0:02:59]}  e5 {[%clk 0:02:59]} 2. Nf3 {[%clk 0:02:59]}  Nc6 {[%clk 0:02:58]} 3. d4 {[%clk 0:02:59]}  exd4 {[%clk 0:02:59]} 4. Nxd4 {[%clk 0:02:59]}  Nf6 {[%clk 0:03:00]} 5. Nxc6 {[%clk 0:02:59]}  bxc6 {[%clk 0:03:00]} 6. Bd3 {[%clk 0:02:59]}  d5 {[%clk 0:02:57]} 7. exd5 {[%clk 0:02:59]}  cxd5 {[%clk 0:02:58]} 8. O-O {[%clk 0:03:00]}  Be7 {[%clk 0:02:59]} 9. c4 {[%clk 0:03:00]}  d4 {[%clk 0:02:55]} 10. Nd2 {[%clk 0:02:52]}  O-O {[%clk 0:02:44]} 11. Ne4 {[%clk 0:02:52]}  Rb8 {[%clk 0:02:15]} 12. b3 {[%clk 0:02:49]}  Rb6 {[%clk 0:01:57]} 13. Re1 {[%clk 0:02:44]}  h6 {[%clk 0:01:49]} 14. Bd2 {[%clk 0:02:43]}  Bb7 {[%clk 0:01:43]} 15. Qc2 {[%clk 0:02:34]}  Re8 {[%clk 0:01:16]} 16. Nxf6+ {[%clk 0:02:34]}  Rxf6 {[%clk 0:01:13]} 17. Re2 {[%clk 0:02:28]}  Bf8 {[%clk 0:01:12]} 18. Rae1 {[%clk 0:02:28]}  Rxe2 {[%clk 0:01:12]} 19. Rxe2 {[%clk 0:02:29]}  c5 {[%clk 0:01:13]} 20. Qd1 {[%clk 0:02:26]}  Qd7 {[%clk 0:01:10]} 21. f3 {[%clk 0:02:22]}  Bd6 {[%clk 0:01:04]} 22. Qe1 {[%clk 0:02:18]}  Kf8 {[%clk 0:01:02]} 23. a3 {[%clk 0:02:03]}  Bxf3 {[%clk 0:00:41]} 24. Rf2 {[%clk 0:01:40]}  Re6 {[%clk 0:00:39]} 25. Qf1 {[%clk 0:01:32]}  Be4 {[%clk 0:00:37]} 26. b4 {[%clk 0:01:23]}  Qe7 {[%clk 0:00:33]} 27. g3 {[%clk 0:01:11]}  cxb4 {[%clk 0:00:32]} 28. axb4 {[%clk 0:01:05]}  Kg8 {[%clk 0:00:23]} 29. c5 {[%clk 0:01:02]}  Bc7 {[%clk 0:00:18]} 30. Bc4 {[%clk 0:01:02]}  Rf6 {[%clk 0:00:18]} 31. Rxf6 {[%clk 0:00:59]}  gxf6 {[%clk 0:00:19]} 32. Qh3 {[%clk 0:00:55]}  a5 {[%clk 0:00:17]} 33. Qg4+ {[%clk 0:00:54]}  Kh7 {[%clk 0:00:16]} 34. bxa5 {[%clk 0:00:50]}  d3 {[%clk 0:00:14]} 35. Qh5 {[%clk 0:00:46]}  Bg6 {[%clk 0:00:13]} 36. Qxh6+ {[%clk 0:00:46]}  Kg8 {[%clk 0:00:12]} 37. Qxg6+ {[%clk 0:00:46]}  Kf8 {[%clk 0:00:13]} 38. Bh6+ {[%clk 0:00:44]}  Ke8 {[%clk 0:00:13]} 39. Bb5+ {[%clk 0:00:45]}  Kd8 {[%clk 0:00:12]} 40. Qg8+ {[%clk 0:00:44]} 1-0


[Site "https://www.chess.com"]

[Event "Titled Tuesday Blitz December 20 Late 2022"]
[White "Matinian, Nikita"]
[Black "aidenzhouu"]
[WhiteFideId "24129100"]
[WhiteElo "2422"]
[BlackElo "2391"]
[Result "1-0"]
[Round "01"]
[TimeControl "180+1"]
[Date "2022.12.21"]
[WhiteClock "0:01:08"]
[BlackClock "0:00:12"]

1. e4 {[%clk 0:02:52]}  c6 {[%clk 0:02:59]} 2. d4 {[%clk 0:02:51]}  d5 {[%clk 0:03:00]} 3. e5 {[%clk 0:02:50]}  Bf5 {[%clk 0:03:00]} 4. Nf3 {[%clk 0:02:51]}  e6 {[%clk 0:02:59]} 5. Be2 {[%clk 0:02:52]}  c5 {[%clk 0:02:59]} 6. Be3 {[%clk 0:02:51]}  Qb6 {[%clk 0:03:00]} 7. Nc3 {[%clk 0:02:51]}  Nc6 {[%clk 0:02:59]} 8. Na4 {[%clk 0:02:49]}  Qa5+ {[%clk 0:02:50]} 9. c3 {[%clk 0:02:49]}  c4 {[%clk 0:02:32]} 10. O-O {[%clk 0:02:33]}  b5 {[%clk 0:02:21]} 11. Nc5 {[%clk 0:02:33]}  Bxc5 {[%clk 0:02:21]} 12. dxc5 {[%clk 0:02:34]}  Nge7 {[%clk 0:02:20]} 13. b4 {[%clk 0:02:24]}  Qa3 {[%clk 0:02:09]} 14. Qc1 {[%clk 0:02:06]}  Qxc1 {[%clk 0:02:04]} 15. Rfxc1 {[%clk 0:02:07]}  Ng6 {[%clk 0:01:48]} 16. a4 {[%clk 0:02:00]}  bxa4 {[%clk 0:01:39]} 17. Rxa4 {[%clk 0:02:00]}  Ngxe5 {[%clk 0:01:28]} 18. Nxe5 {[%clk 0:02:00]}  Nxe5 {[%clk 0:01:28]} 19. Rca1 {[%clk 0:02:01]}  O-O {[%clk 0:01:02]} 20. Rxa7 {[%clk 0:01:58]}  Rab8 {[%clk 0:00:41]} 21. f3 {[%clk 0:01:38]}  Bd3 {[%clk 0:00:26]} 22. Bd1 {[%clk 0:01:36]}  Nc6 {[%clk 0:00:22]} 23. R7a6 {[%clk 0:01:15]}  Rfc8 {[%clk 0:00:19]} 24. Ba4 {[%clk 0:01:11]}  Ne5 {[%clk 0:00:17]} 25. Bf4 {[%clk 0:01:08]}  f6 {[%clk 0:00:16]} 26. Bxe5 {[%clk 0:01:08]}  fxe5 {[%clk 0:00:16]} 27. Bd7 {[%clk 0:01:09]}  Rd8 {[%clk 0:00:16]} 28. Bxe6+ {[%clk 0:01:07]}  Kf8 {[%clk 0:00:16]} 29. c6 {[%clk 0:01:08]}  Re8 {[%clk 0:00:12]} 30. c7 {[%clk 0:01:08]} 1-0


[Site "https://www.chess.com"]

[Event "Titled Tuesday Blitz December 20 Late 2022"]
[White "Matthes, Aaron"]
[Black "Shuvalova, Polina"]
[WhiteFideId "16227310"]
[BlackFideId "24171760"]
[WhiteElo "2327"]
[BlackElo "2361"]
[Result "0-1"]
[Round "01"]
[TimeControl "180+1"]
[Date "2022.12.21"]
[WhiteClock "0:00:52"]
[BlackClock "0:00:40"]

1. d4 {[%clk 0:03:00]}  Nf6 {[%clk 0:02:52]} 2. Nf3 {[%clk 0:03:00]}  d5 {[%clk 0:02:51]} 3. g3 {[%clk 0:03:00]}  c5 {[%clk 0:02:48]} 4. Bg2 {[%clk 0:02:59]}  cxd4 {[%clk 0:02:47]} 5. O-O {[%clk 0:02:56]}  e6 {[%clk 0:02:46]} 6. Nxd4 {[%clk 0:02:53]}  Be7 {[%clk 0:02:44]} 7. b3 {[%clk 0:02:45]}  O-O {[%clk 0:02:44]} 8. Bb2 {[%clk 0:02:45]}  Nc6 {[%clk 0:02:44]} 9. Nf3 {[%clk 0:02:36]}  b6 {[%clk 0:02:39]} 10. Nbd2 {[%clk 0:02:34]}  Bb7 {[%clk 0:02:38]} 11. Rc1 {[%clk 0:02:34]}  Bc5 {[%clk 0:02:27]} 12. c4 {[%clk 0:02:32]}  d4 {[%clk 0:02:27]} 13. a3 {[%clk 0:02:29]}  a5 {[%clk 0:02:26]} 14. Qc2 {[%clk 0:02:18]}  Qe7 {[%clk 0:02:24]} 15. Rfd1 {[%clk 0:02:18]}  e5 {[%clk 0:02:20]} 16. Nh4 {[%clk 0:02:11]}  Bxa3 {[%clk 0:02:11]} 17. Nf5 {[%clk 0:02:10]}  Qc5 {[%clk 0:02:11]} 18. Ne4 {[%clk 0:02:02]}  Nxe4 {[%clk 0:02:08]} 19. Bxe4 {[%clk 0:02:03]}  Bxb2 {[%clk 0:02:06]} 20. Qxb2 {[%clk 0:02:03]}  g6 {[%clk 0:01:59]} 21. Nh6+ {[%clk 0:01:50]}  Kg7 {[%clk 0:01:58]} 22. Ng4 {[%clk 0:01:48]}  f5 {[%clk 0:01:55]} 23. Nxe5 {[%clk 0:01:41]}  Qxe5 {[%clk 0:01:47]} 24. Bxc6 {[%clk 0:01:41]}  Bxc6 {[%clk 0:01:47]} 25. Rxd4 {[%clk 0:01:42]}  Rfe8 {[%clk 0:01:43]} 26. Rcd1 {[%clk 0:01:41]}  Re7 {[%clk 0:01:38]} 27. e3 {[%clk 0:01:35]}  Kf7 {[%clk 0:01:28]} 28. b4 {[%clk 0:01:33]}  a4 {[%clk 0:01:24]} 29. b5 {[%clk 0:01:33]}  Bf3 {[%clk 0:01:23]} 30. Ra1 {[%clk 0:01:31]}  Qc5 {[%clk 0:01:18]} 31. Qd2 {[%clk 0:01:27]}  a3 {[%clk 0:01:14]} 32. Rd6 {[%clk 0:01:24]}  a2 {[%clk 0:01:09]} 33. h4 {[%clk 0:01:10]}  Bb7 {[%clk 0:01:01]} 34. h5 {[%clk 0:01:04]}  Qe5 {[%clk 0:00:59]} 35. Rd4 {[%clk 0:01:00]}  Qf6 {[%clk 0:00:48]} 36. Rxa2 {[%clk 0:00:55]}  Rxa2 {[%clk 0:00:48]} 37. Qxa2 {[%clk 0:00:56]}  Kg7 {[%clk 0:00:48]} 38. hxg6 {[%clk 0:00:52]}  Qxd4 {[%clk 0:00:40]} 0-1


[Site "https://www.chess.com"]